fUST/lending_fUST_20241003
["ID","MTS","AMOUNT","RATE_DAILY","PERIOD"]
[339762350,1727962245270,-503.80755531,0.00013698,2]
[339762351,1727962245280,-500.0,0.00013698,2]
[339762352,1727962245290,-500.0,0.00013698,2]
[339762353,1727962245304,-500.0,0.00013698,2]
[339762354,1727962245314,-500.0,0.00013698,2]
[339762355,1727962245323,-500.0,0.00013698,2]
[339762356,1727962245333,-500.0,0.00013698,2]
[339762357,1727962245343,-500.0,0.00013698,2]
[339762358,1727962245353,-500.0,0.00013698,2]
[339762359,1727962245362,-500.0,0.00013698,2]
[339762360,1727962245371,-500.0,0.00013698,2]
[339762361,1727962245381,-501.08080171,0.00013698,2]
[339762362,1727962245391,-500.0,0.00013698,2]
[339762363,1727962245401,-500.0,0.00013698,2]
[339762364,1727962245411,-500.0,0.00013698,2]
[339762365,1727962245421,-500.0,0.00013698,2]
[339762366,1727962245430,-500.0,0.00013698,2]
[339762367,1727962245439,-500.0,0.00013698,2]
[339762368,1727962245448,-500.0,0.00013698,2]
[339762369,1727962245458,-439.71071217,0.00013698,2]
[339762370,1727962245467,-500.0,0.00013698,2]
[339762372,1727962245477,-500.0,0.00013698,2]
[339762373,1727962245486,-500.0,0.00013698,2]
[339762374,1727962245495,-500.0,0.00013698,2]
[339762375,1727962245504,-500.0,0.00013698,2]
[339762376,1727962245513,-500.0,0.00013698,2]
[339762377,1727962245522,-500.0,0.00013698,2]
[339762378,1727962245531,-500.0,0.00013698,2]
[339762380,1727962245540,-500.0,0.00013698,2]
[339762382,1727962245552,-500.0,0.00013698,2]
[339762383,1727962245561,-500.0,0.00013698,2]
[339762384,1727962245570,-157.35949375,0.00013698,2]
[339762385,1727962245579,-500.0,0.00013698,2]
[339762386,1727962245588,-698.93,0.00013698,2]
[339762387,1727962245597,-303.39958238,0.00013698,2]
[339762388,1727962245608,-500.0,0.00013698,2]
[339762389,1727962245618,-500.0,0.00013698,2]
[339762390,1727962245626,-500.0,0.00013698,2]
[339762391,1727962245635,-500.0,0.00013698,2]
[339762392,1727962245645,-526.23,0.00013698,2]
[339762393,1727962245654,-500.0,0.00013698,2]
[339762394,1727962245663,-500.0,0.00013698,2]
[339762395,1727962245672,-500.0,0.00013698,2]
[339762396,1727962245681,-500.0,0.00013698,2]
[339762397,1727962245692,-500.0,0.00013698,2]
[339762398,1727962245702,-500.0,0.00013698,2]
[339762400,1727962245714,-500.0,0.00013698,2]
[339762402,1727962245724,-668.49,0.00013698,2]
[339762404,1727962245734,-500.0,0.00013698,2]
[339762406,1727962245746,-208.41736203,0.00013698,2]
[339762407,1727962245756,-500.0,0.00013698,2]
[339762408,1727962245767,-500.0,0.00013698,2]
[339762409,1727962245778,-500.0,0.00013698,2]
[339762410,1727962245789,-979.22,0.00013698,2]
[339762411,1727962245802,-626.88,0.00013698,2]
[339762412,1727962245812,-500.0,0.00013698,2]
[339762414,1727962245825,-426.81622056,0.00013698,2]
[339762416,1727962245835,-500.0,0.00013698,2]
[339762418,1727962245847,-500.0,0.00013698,2]
[339762419,1727962245858,-500.0,0.00013698,2]
[339762420,1727962245868,-500.0,0.00013698,2]
[339762421,1727962245877,-500.0,0.00013698,2]
[339762423,1727962245887,-550.7,0.00013698,2]
[339762424,1727962245896,-500.0,0.00013698,2]
[339762425,1727962245905,-500.0,0.00013698,2]
[339762426,1727962245915,-500.0,0.00013698,2]
[339762427,1727962245924,-500.0,0.00013698,2]
[339762428,1727962245934,-500.0,0.00013698,2]
[339762429,1727962245943,-500.0,0.00013698,2]
[339762431,1727962245952,-500.0,0.00013698,2]
[339762432,1727962245961,-500.0,0.00013698,2]
[339762433,1727962245971,-500.0,0.00013698,2]
[339762434,1727962245980,-505.45833164,0.00013698,2]
[339762435,1727962245989,-500.0,0.00013698,2]
[339762436,1727962245998,-500.0,0.00013698,2]
[339762437,1727962246007,-500.0,0.00013698,2]
[339762438,1727962246017,-505.24088308,0.00013698,2]
[339762439,1727962246026,-500.0,0.00013698,2]
[339762440,1727962246036,-500.30491868,0.00013698,2]
[339762441,1727962246047,-735.75,0.00013698,2]
[339762442,1727962246057,-646.78795088,0.00013698,2]
[339762443,1727962246066,-235.89295947,0.00013698,2]
[339762444,1727962246076,-500.0,0.00013698,2]
[339762445,1727962246090,-500.0,0.00013698,2]
[339762446,1727962246100,-575.81,0.00013698,2]
[339762447,1727962246109,-500.0,0.00013698,2]
[339762448,1727962246119,-190.38384694,0.00013698,2]
[339762449,1727962246128,-500.0,0.00013698,2]
[339762450,1727962246249,-500.0,0.00013698,2]
[339762451,1727962246258,-500.0,0.00013698,2]
[339762452,1727962246268,-500.52119595,0.00013698,2]
[339762453,1727962246278,-655.71,0.00013698,2]
[339762454,1727962246287,-500.0,0.00013698,2]
[339762455,1727962246299,-500.0,0.00013698,2]
[339762456,1727962246308,-500.0,0.00013698,2]
[339762457,1727962246318,-679.61,0.00013698,2]
[339762458,1727962246327,-717.83,0.00013698,2]
[339762459,1727962246336,-500.0,0.00013698,2]
[339762460,1727962246346,-500.0,0.00013698,2]
[339762461,1727962246355,-500.0,0.00013698,2]
[339762462,1727962246364,-500.0,0.00013698,2]
[339762463,1727962246374,-500.0,0.00013698,2]
[339762464,1727962246383,-500.0,0.00013698,2]
[339762465,1727962246392,-500.0,0.00013698,2]
[339762466,1727962246403,-592.19,0.00013698,2]
[339762467,1727962246412,-500.0,0.00013698,2]
[339762468,1727962246421,-500.0,0.00013698,2]
[339762469,1727962246431,-500.0,0.00013698,2]
[339762470,1727962246440,-500.0,0.00013698,2]
[339762471,1727962246450,-500.0,0.00013698,2]
[339762472,1727962246459,-500.0,0.00013698,2]
[339762473,1727962246468,-500.0,0.00013698,2]
[339762474,1727962246478,-807.97,0.00013698,2]
[339762475,1727962246488,-500.0,0.00013698,2]
[339762476,1727962246498,-500.0,0.00013698,2]
[339762477,1727962246508,-550.03660707,0.00013698,2]
[339762478,1727962246519,-690.02,0.00013698,2]
[339762479,1727962246528,-500.0,0.00013698,2]
[339762480,1727962246537,-500.0,0.00013698,2]
[339762481,1727962246550,-500.0,0.00013698,2]
[339762482,1727962246559,-500.0,0.00013698,2]
[339762483,1727962246568,-500.0,0.00013698,2]
[339762484,1727962246577,-510.02573244,0.00013698,2]
[339762485,1727962246587,-500.0,0.00013698,2]
[339762486,1727962246596,-756.34,0.00013698,2]
[339762487,1727962246605,-315.48079155,0.00013698,2]
[339762488,1727962246614,-769.95,0.00013698,2]
[339762489,1727962246625,-500.0,0.00013698,2]
[339762490,1727962246634,-224.84921716,0.00013698,2]
[339762491,1727962246644,-500.0,0.00013698,2]
[339762492,1727962246653,-500.0,0.00013698,2]
[339762493,1727962246663,-515.16611628,0.00013698,2]
[339762494,1727962246672,-500.0,0.00013698,2]
[339762495,1727962246681,-645.61227524,0.00013698,2]
[339762496,1727962246690,-500.0,0.00013698,2]
[339762497,1727962246699,-500.0,0.00013698,2]
[339762498,1727962246708,-667.6,0.00013698,2]
[339762499,1727962246718,-500.0,0.00013698,2]
[339762500,1727962246727,-500.0,0.00013698,2]
[339762501,1727962246737,-500.0,0.00013698,2]
[339762502,1727962246746,-570.7,0.00013698,2]
[339762503,1727962246756,-555.9,0.00013698,2]
[339762504,1727962246766,-725.95,0.00013698,2]
[339762505,1727962246775,-500.0,0.00013698,2]
[339762506,1727962246784,-604.64,0.00013698,2]
[339762507,1727962246796,-604.46,0.00013698,2]
[339762508,1727962246813,-604.46,0.00013698,2]
[339762509,1727962246823,-604.46,0.00013698,2]
[339762510,1727962246831,-604.46,0.00013698,2]
[339762511,1727962246841,-682.27,0.00013698,2]
[339762512,1727962246851,-604.46,0.00013698,2]
[339762513,1727962246860,-604.46,0.00013698,2]
[339762514,1727962246869,-500.0,0.00013698,2]
[339762515,1727962246878,-604.46,0.00013698,2]
[339762516,1727962246888,-604.46,0.00013698,2]
[339762517,1727962246897,-604.46,0.00013698,2]
[339762518,1727962246906,-500.0,0.00013698,2]
[339762519,1727962246916,-604.46,0.00013698,2]
[339762520,1727962246925,-604.46,0.00013698,2]
[339762521,1727962246934,-604.46,0.00013698,2]
[339762522,1727962246943,-604.46,0.00013698,2]
[339762523,1727962246952,-604.46,0.00013698,2]
[339762524,1727962246962,-500.0,0.00013698,2]
[339762525,1727962246971,-604.46,0.00013698,2]
[339762526,1727962246981,-604.46,0.00013698,2]
[339762527,1727962246990,-500.0,0.00013698,2]
[339762528,1727962246999,-604.46,0.00013698,2]
[339762529,1727962247008,-604.46,0.00013698,2]
[339762530,1727962247019,-604.46,0.00013698,2]
[339762531,1727962247028,-604.46,0.00013698,2]
[339762532,1727962247038,-500.0,0.00013698,2]
[339762533,1727962247051,-604.46,0.00013698,2]
[339762534,1727962247060,-500.0,0.00013698,2]
[339762535,1727962247071,-604.46,0.00013698,2]
[339762536,1727962247081,-604.46,0.00013698,2]
[339762537,1727962247093,-604.65078733,0.00013698,2]
[339762538,1727962247103,-500.0,0.00013698,2]
[339762539,1727962247113,-500.0,0.00013698,2]
[339762540,1727962247124,-500.0,0.00013698,2]
[339762541,1727962247134,-500.0,0.00013698,2]
[339762542,1727962247144,-500.0,0.00013698,2]
[339762543,1727962247154,-907.57,0.00013698,2]
[339762544,1727962247166,-500.0,0.00013698,2]
[339762545,1727962247178,-2644.88,0.00013698,7]
[339762546,1727962247188,-500.0,0.00013698,2]
[339762547,1727962247200,-1108.13,0.00013698,2]
[339762548,1727962247211,-674.78,0.00013698,2]
[339762549,1727962247222,-500.0,0.00013698,2]
[339762550,1727962247231,-500.0,0.00013698,2]
[339762551,1727962247243,-718.49,0.00013698,2]
[339762552,1727962247253,-550.76,0.00013698,2]
[339762553,1727962247264,-500.0,0.00013698,2]
[339762554,1727962247274,-500.0,0.00013698,2]
[339762555,1727962247283,-500.0,0.00013698,2]
[339762556,1727962247295,-500.0,0.00013698,2]
[339762557,1727962247304,-705.45,0.00013698,2]
[339762558,1727962247313,-500.0,0.00013698,2]
[339762559,1727962247323,-500.0,0.00013698,2]
[339762560,1727962247334,-500.92516392,0.00013698,2]
[339762561,1727962247345,-565.98,0.00013698,2]
[339762562,1727962247354,-500.0,0.00013698,2]
[339762563,1727962247364,-500.0,0.00013698,2]
[339762564,1727962247374,-983.71,0.00013698,2]
[339762565,1727962247384,-500.0,0.00013698,2]
[339762566,1727962247393,-1580.21,0.00013698,2]
[339762567,1727962247403,-500.0,0.00013698,2]
[339762568,1727962247413,-501.87325652,0.00013698,2]
[339762569,1727962247425,-500.0,0.00013698,2]
[339762570,1727962247435,-500.0,0.00013698,2]
[339762571,1727962247446,-500.0,0.00013698,2]
[339762572,1727962247457,-500.0,0.00013698,2]
[339762573,1727962247468,-500.0,0.00013698,2]
[339762574,1727962247478,-500.0,0.00013698,2]
[339762575,1727962247487,-500.66708954,0.00013698,2]
[339762576,1727962247497,-891.47,0.00013698,2]
[339762577,1727962247507,-500.0,0.00013698,2]
[339762578,1727962247517,-500.0,0.00013698,2]
[339762579,1727962247527,-500.0,0.00013698,2]
[339762580,1727962247536,-500.0,0.00013698,2]
[339762581,1727962247550,-500.0,0.00013698,2]
[339762582,1727962247559,-604.98,0.00013698,2]
[339762583,1727962247569,-500.0,0.00013698,2]
[339762584,1727962247579,-570.09,0.00013698,2]
[339762585,1727962247588,-500.0,0.00013698,2]
[339762586,1727962247599,-642.31807613,0.00013698,2]
[339762587,1727962247608,-500.0,0.00013698,2]
[339762588,1727962247618,-500.0,0.00013698,2]
[339762589,1727962247628,-507.56,0.00013698,2]
[339762590,1727962247639,-500.0,0.00013698,2]
[339762591,1727962247650,-502.68,0.00013698,2]
[339762592,1727962247661,-500.0,0.00013698,2]
[339762593,1727962247671,-500.0,0.00013698,2]
[339762594,1727962247682,-500.0,0.00013698,2]
[339762595,1727962247691,-500.0,0.00013698,2]
[339762596,1727962247701,-500.0,0.00013698,2]
[339762597,1727962247711,-500.0,0.00013698,2]
[339762598,1727962247720,-500.0,0.00013698,2]
[339762599,1727962247729,-503.55244473,0.00013698,2]
[339762600,1727962247739,-500.0,0.00013698,2]
[339762601,1727962247748,-500.0,0.00013698,2]
[339762602,1727962247757,-822.67,0.00013698,2]
[339762603,1727962247767,-500.0,0.00013698,2]
[339762604,1727962247776,-802.82,0.00013698,2]
[339762605,1727962247785,-609.03,0.00013698,2]
[339762606,1727962247797,-500.0,0.00013698,2]
[339762607,1727962247807,-726.65,0.00013698,2]
[339762608,1727962247817,-500.0,0.00013698,2]
[339762609,1727962247826,-608.77413444,0.00013698,2]
[339762610,1727962247836,-500.0,0.00013698,2]
[339762611,1727962247846,-524.64,0.00013698,2]
[339762612,1727962247856,-500.0,0.00013698,2]
[339762613,1727962247866,-500.0,0.00013698,2]
[339762614,1727962247876,-500.0,0.00013698,2]
[339762615,1727962247885,-1571.38,0.00013698,2]
[339762616,1727962247895,-500.0,0.00013698,2]
[339762617,1727962248015,-500.0,0.00013698,2]
[339762618,1727962248026,-500.0,0.00013698,2]
[339762619,1727962248035,-500.0,0.00013698,2]
[339762620,1727962248045,-500.0,0.00013698,2]
[339762621,1727962248055,-500.75886572,0.00013698,2]
[339762622,1727962248064,-500.0,0.00013698,2]
[339762623,1727962248074,-674.16,0.00013698,2]
[339762624,1727962248089,-500.0,0.00013698,2]
[339762625,1727962248099,-646.58,0.00013698,2]
[339762626,1727962248108,-500.0,0.00013698,2]
[339762627,1727962248118,-501.61339725,0.00013698,2]
[339762628,1727962248129,-500.0,0.00013698,2]
[339762629,1727962248139,-500.0,0.00013698,2]
[339762630,1727962248149,-500.0,0.00013698,2]
[339762631,1727962248161,-500.0,0.00013698,2]
[339762632,1727962248171,-503.44326185,0.00013698,2]
[339762633,1727962248180,-687.9,0.00013698,2]
[339762634,1727962248189,-500.0,0.00013698,2]
[339762635,1727962248199,-500.0,0.00013698,2]
[339762636,1727962248209,-500.0,0.00013698,2]
[339762637,1727962248219,-501.34296562,0.00013698,2]
[339762638,1727962248229,-500.0,0.00013698,2]
[339762639,1727962248239,-500.0,0.00013698,2]
[339762640,1727962248249,-500.0,0.00013698,2]
[339762641,1727962248259,-500.0,0.00013698,2]
[339762642,1727962248269,-500.0,0.00013698,2]
[339762643,1727962248278,-500.91953704,0.00013698,2]
[339762644,1727962248288,-500.0,0.00013698,2]
[339762645,1727962248302,-500.0,0.00013698,2]
[339762646,1727962248311,-500.0,0.00013698,2]
[339762647,1727962248321,-500.0,0.00013698,2]
[339762648,1727962248331,-500.0,0.00013698,2]
[339762649,1727962248341,-500.0,0.00013698,2]
[339762650,1727962248351,-500.0,0.00013698,2]
[339762651,1727962248360,-500.0,0.00013698,2]
[339762652,1727962248370,-500.0,0.00013698,2]
[339762653,1727962248381,-748.27,0.00013698,2]
[339762654,1727962248390,-631.03137144,0.00013698,2]
[339762655,1727962248400,-500.0,0.00013698,2]
[339762656,1727962248410,-500.0,0.00013698,2]
[339762657,1727962248420,-276.75764162,0.00013698,2]
[339762658,1727962248431,-500.0,0.00013698,2]
[339762659,1727962248441,-500.0,0.00013698,2]
[339762660,1727962248450,-500.0,0.00013698,2]
[339762661,1727962248461,-500.0,0.00013698,2]
[339762662,1727962248471,-500.0,0.00013698,2]
[339762663,1727962248482,-500.0,0.00013698,2]
[339762664,1727962248492,-640.07,0.00013698,2]
[339762665,1727962248502,-500.0,0.00013698,2]
[339762666,1727962248512,-500.0,0.00013698,2]
[339762667,1727962248522,-500.0,0.00013698,2]
[339762668,1727962248532,-571.83,0.00013698,2]
[339762669,1727962248542,-500.0,0.00013698,2]
[339762670,1727962248556,-500.0,0.00013698,2]
[339762671,1727962248565,-500.0,0.00013698,2]
[339762672,1727962248574,-500.0,0.00013698,2]
[339762673,1727962248583,-500.0,0.00013698,2]
[339762674,1727962248593,-500.0,0.00013698,2]
[339762675,1727962248602,-501.5227972,0.00013698,2]
[339762676,1727962248611,-500.0,0.00013698,2]
[339762677,1727962248621,-501.00887923,0.00013698,2]
[339762678,1727962248631,-500.0,0.00013698,2]
[339762679,1727962248641,-500.07731565,0.00013698,2]
[339762680,1727962248650,-500.0,0.00013698,2]
[339762681,1727962248660,-500.0,0.00013698,2]
[339762682,1727962248669,-631.98,0.00013698,2]
[339762683,1727962248679,-500.0,0.00013698,2]
[339762684,1727962248688,-1352.53,0.00013698,2]
[339762685,1727962248698,-638.55,0.00013698,2]
[339762686,1727962248707,-637.05,0.00013698,2]
[339762687,1727962248717,-405.73473779,0.00013698,2]
[339762688,1727962248726,-511.61882318,0.00013698,2]
[339762689,1727962248736,-500.0,0.00013698,2]
[339762690,1727962248745,-500.0,0.00013698,2]
[339762691,1727962248755,-540.46793923,0.00013698,2]
[339762692,1727962248765,-500.0,0.00013698,2]
[339762693,1727962248774,-500.0,0.00013698,2]
[339762694,1727962248788,-500.44387226,0.00013698,2]
[339762695,1727962248816,-750.33,0.00013698,2]
[339762696,1727962248835,-500.36659977,0.00013698,2]
[339762697,1727962248859,-500.0,0.00013698,2]
[339762698,1727962248881,-500.91033364,0.00013698,2]
[339762699,1727962248900,-500.0,0.00013698,2]
[339762700,1727962248921,-500.0,0.00013698,2]
[339762701,1727962248937,-500.0,0.00013698,2]
[339762702,1727962248954,-1099.09,0.00013698,2]
[339762703,1727962248975,-500.0,0.00013698,2]
[339762704,1727962248994,-500.0,0.00013698,2]
[339762705,1727962249008,-500.0,0.00013698,2]
[339762706,1727962249028,-500.0,0.00013698,2]
[339762707,1727962249044,-500.0,0.00013698,2]
[339762708,1727962249064,-500.0,0.00013698,2]
[339762709,1727962249080,-500.0,0.00013698,2]
[339762710,1727962249097,-500.0,0.00013698,2]
[339762711,1727962249113,-500.0,0.00013698,2]
[339762712,1727962249130,-500.0,0.00013698,2]
[339762713,1727962249147,-500.0,0.00013698,2]
[339762714,1727962249168,-500.0,0.00013698,2]
[339762715,1727962249184,-500.0,0.00013698,2]
[339762716,1727962249200,-500.0,0.00013698,2]
[339762717,1727962249217,-279.96200587,0.00013698,2]
[339762718,1727962249231,-604.76614755,0.00013698,2]
[339762719,1727962249247,-500.0,0.00013698,2]
[339762720,1727962249262,-540.27,0.00013698,2]
[339762721,1727962249278,-2364.76,0.00013698,2]
[339762722,1727962249295,-500.0,0.00013698,2]
[339762723,1727962249314,-500.0,0.00013698,2]
[339762724,1727962249329,-500.0,0.00013698,2]
[339762725,1727962249344,-1299.09,0.00013698,2]
[339762726,1727962249360,-1112.07,0.00013698,2]
[339762727,1727962249376,-500.0,0.00013698,2]
[339762728,1727962249392,-1155.08,0.00013698,2]
[339762729,1727962249407,-500.0,0.00013698,2]
[339762730,1727962249422,-501.21667364,0.00013698,2]
[339762731,1727962249438,-500.0,0.00013698,2]
[339762732,1727962249454,-500.0,0.00013698,2]
[339762733,1727962249469,-586.89498287,0.00013698,2]
[339762734,1727962249485,-722.78,0.00013698,2]
[339762735,1727962249502,-500.0,0.00013698,2]
[339762736,1727962249518,-500.0,0.00013698,2]
[339762737,1727962249532,-500.19134765,0.00013698,2]
[339762738,1727962249549,-699.56,0.00013698,2]
[339762739,1727962249564,-502.83562869,0.00013698,2]
[339762740,1727962249579,-729.16,0.00013698,2]
[339762741,1727962249595,-500.0,0.00013698,2]
[339762742,1727962249610,-500.0,0.00013698,2]
[339762743,1727962249626,-500.0,0.00013698,2]
[339762744,1727962249641,-702.51,0.00013698,2]
[339762745,1727962249661,-500.0,0.00013698,2]
[339762746,1727962249677,-500.0,0.00013698,2]
[339762747,1727962249692,-500.0,0.00013698,2]
[339762748,1727962249708,-500.0,0.00013698,2]
[339762749,1727962249723,-582.02,0.00013698,2]
[339762750,1727962249739,-500.0,0.00013698,2]
[339762751,1727962249755,-500.0,0.00013698,2]
[339762752,1727962249771,-500.0,0.00013698,2]
[339762753,1727962249786,-500.0,0.00013698,2]
[339762754,1727962249806,-500.0,0.00013698,2]
[339762755,1727962249820,-500.0,0.00013698,2]
[339762756,1727962249835,-500.0,0.00013698,2]
[339762757,1727962249850,-500.0,0.00013698,2]
[339762758,1727962249865,-500.0,0.00013698,2]
[339762759,1727962249880,-500.0,0.00013698,2]
[339762760,1727962249896,-500.0,0.00013698,2]
[339762761,1727962249908,-500.0,0.00013698,2]
[339762762,1727962249917,-500.0,0.00013698,2]
[339762763,1727962249927,-500.0,0.00013698,2]
[339762764,1727962249937,-500.0,0.00013698,2]
[339762765,1727962249947,-500.0,0.00013698,2]
[339762766,1727962249956,-573.41,0.00013698,2]
[339762767,1727962249966,-518.90226377,0.00013698,2]
[339762768,1727962249975,-504.13853399,0.00013698,2]
[339762769,1727962249985,-500.0,0.00013698,2]
[339762770,1727962249996,-329.01169591,0.00013698,2]
[339762771,1727962250251,-500.0,0.00013698,2]
[339762772,1727962250268,-500.0,0.00013698,2]
[339762773,1727962250280,-1112.19,0.00013698,2]
[339762774,1727962250290,-539.01654651,0.00013698,2]
[339762775,1727962250302,-500.0,0.00013698,2]
[339762776,1727962250312,-209.09086508,0.00013698,2]
[339762777,1727962250321,-500.0,0.00013698,2]
[339762778,1727962250331,-500.0,0.00013698,2]
[339762779,1727962250341,-500.0,0.00013698,2]
[339762780,1727962250351,-635.98798192,0.00013698,2]
[339762781,1727962250362,-500.0,0.00013698,2]
[339762782,1727962250372,-771.44,0.00013698,2]
[339762783,1727962250382,-703.18,0.00013698,2]
[339762784,1727962250392,-664.74,0.00013698,2]
[339762785,1727962250402,-543.08,0.00013698,2]
[339762786,1727962250412,-500.0,0.00013698,2]
[339762787,1727962250422,-500.0,0.00013698,2]
[339762788,1727962250432,-507.44855973,0.00013698,2]
[339762789,1727962250442,-500.0,0.00013698,2]
[339762790,1727962250452,-501.16025032,0.00013698,2]
[339762791,1727962250462,-500.0,0.00013698,2]
[339762792,1727962250472,-619.42,0.00013698,2]
[339762793,1727962250481,-500.71661722,0.00013698,2]
[339762794,1727962250491,-519.55,0.00013698,2]
[339762795,1727962250501,-500.0,0.00013698,2]
[339762796,1727962250511,-773.25,0.00013698,2]
[339762797,1727962250521,-500.0,0.00013698,2]
[339762798,1727962250530,-500.0,0.00013698,2]
[339762799,1727962250539,-500.0,0.00013698,2]
[339762800,1727962250554,-500.0,0.00013698,2]
[339762801,1727962250567,-500.45372874,0.00013698,2]
[339762802,1727962250576,-500.0,0.00013698,2]
[339762803,1727962250586,-500.0,0.00013698,2]
[339762804,1727962250595,-500.0,0.00013698,2]
[339762805,1727962250605,-500.0,0.00013698,2]
[339762806,1727962250614,-500.0,0.00013698,2]
[339762807,1727962250624,-515.42377405,0.00013698,2]
[339762808,1727962250633,-500.0,0.00013698,2]
[339762809,1727962250643,-500.0,0.00013698,2]
[339762810,1727962250652,-500.0,0.00013698,2]
[339762811,1727962250662,-500.0,0.00013698,2]
[339762812,1727962250672,-500.0,0.00013698,2]
[339762813,1727962250681,-836.63,0.00013698,2]
[339762814,1727962250691,-930.12,0.00013698,2]
[339762815,1727962250701,-500.0,0.00013698,2]
[339762816,1727962250711,-726.27,0.00013698,2]
[339762817,1727962250720,-979.49,0.00013698,2]
[339762818,1727962250730,-1000.0,0.00013698,2]
[339762819,1727962250740,-500.0,0.00013698,2]
[339762820,1727962250749,-503.45,0.00013698,2]
[339762821,1727962250759,-500.0,0.00013698,2]
[339762822,1727962250768,-500.0,0.00013698,2]
[339762823,1727962250778,-500.0,0.00013698,2]
[339762824,1727962250787,-500.0,0.00013698,2]
[339762825,1727962250799,-500.0,0.00013698,2]
[339762826,1727962250809,-500.0,0.00013698,2]
[339762827,1727962250817,-500.0,0.00013698,2]
[339762828,1727962250827,-213.87861659,0.00013698,2]
[339762829,1727962250836,-832.03,0.00013698,2]
[339762830,1727962250845,-609.8,0.00013698,2]
[339762831,1727962250855,-500.0,0.00013698,2]
[339762832,1727962250864,-500.0,0.00013698,2]
[339762833,1727962250874,-500.0,0.00013698,2]
[339762834,1727962250884,-500.0,0.00013698,2]
[339762835,1727962250894,-500.0,0.00013698,2]
[339762836,1727962250904,-500.0,0.00013698,2]
[339762837,1727962250914,-500.0,0.00013698,2]
[339762838,1727962250923,-500.0,0.00013698,2]
[339762839,1727962250933,-196.18114167,0.00013698,2]
[339762840,1727962250942,-982.78,0.00013698,2]
[339762841,1727962250952,-500.19158932,0.00013698,2]
[339762842,1727962250961,-500.0,0.00013698,2]
[339762843,1727962250971,-500.0,0.00013698,2]
[339762844,1727962250980,-500.0,0.00013698,2]
[339762845,1727962250990,-500.0,0.00013698,2]
[339762846,1727962251000,-500.0,0.00013698,2]
[339762847,1727962251010,-500.0,0.00013698,2]
[339762848,1727962251019,-500.0,0.00013698,2]
[339762849,1727962251029,-500.0,0.00013698,2]
[339762850,1727962251038,-500.0,0.00013698,2]
[339762851,1727962251050,-500.0,0.00013698,2]
[339762852,1727962251059,-500.0,0.00013698,2]
[339762853,1727962251069,-500.0,0.00013698,2]
[339762854,1727962251079,-500.0,0.00013698,2]
[339762855,1727962251091,-527.94478923,0.00013698,2]
[339762856,1727962251100,-1370.84,0.00013698,2]
[339762857,1727962251110,-500.67397721,0.00013698,2]
[339762858,1727962251119,-500.0,0.00013698,2]
[339762859,1727962251129,-500.0,0.00013698,2]
[339762860,1727962251139,-619.5,0.00013698,2]
[339762861,1727962251149,-500.0,0.00013698,2]